bitfinex/quotes_BTCUSD_20220109
["timestamp","ask_amount","ask_price","bid_price","bid_amount"]
[1641715478186,0.00642655,41835.0,41834.0,0.98649809]
[1641715478988,0.00642655,41835.0,41834.0,0.384355]
[1641715479389,0.00042655,41835.0,41834.0,0.384355]
[1641715480040,0.00742655,41835.0,41834.0,0.384355]
[1641715480243,0.00742655,41835.0,41834.0,0.65290622]
[1641715481443,0.00042655,41835.0,41834.0,0.65258354]
[1641715482044,0.00742655,41835.0,41834.0,1.04156486]
[1641715483284,0.00042655,41835.0,41834.0,1.04156486]
[1641715484089,0.00742655,41835.0,41834.0,1.04156486]
[1641715484489,0.00742655,41835.0,41834.0,0.77301364]
[1641715484887,0.00742655,41835.0,41834.0,0.38403232]
[1641715485287,0.00042655,41835.0,41834.0,0.38403232]
[1641715485489,0.00042655,41835.0,41833.0,0.05977414]
[1641715486087,0.06820755,41835.0,41831.0,0.05978338]
[1641715486289,0.06820755,41835.0,41832.0,0.384355]
[1641715486588,0.0686341,41835.0,41832.0,0.384355]
[1641715486791,0.06820755,41835.0,41832.0,0.384355]
[1641715487338,0.06020755,41835.0,41832.0,0.384355]
[1641715487638,0.06020754,41835.0,41832.0,0.384355]
[1641715487840,0.06020754,41835.0,41829.0,0.12078811]
[1641715488041,0.06720754,41835.0,41829.0,0.00121611]
[1641715488240,0.06720754,41835.0,41825.0,0.11997394]
[1641715488241,0.06720754,41835.0,41825.0,0.00040294]
[1641715488441,0.059795,41833.0,41825.0,0.00040294]
[1641715488639,0.3376374,41832.0,41825.0,0.00040294]
[1641715488840,0.059798,41829.0,41825.0,0.00040295]
[1641715489042,0.143068,41829.0,41825.0,0.00040295]
[1641715489843,0.143068,41829.0,41825.0,0.000403]
[1641715490041,0.151068,41829.0,41825.0,0.000403]
[1641715491078,0.067798,41829.0,41825.0,0.000403]
[1641715491681,0.067798,41829.0,41826.0,0.05979]
[1641715491881,0.067798,41829.0,41826.0,0.11957911]
[1641715493285,0.059798,41829.0,41826.0,0.11957911]
[1641715494084,0.067798,41829.0,41826.0,0.05978911]
[1641715494286,0.067798,41829.0,41825.0,0.06019487]
[1641715494738,0.067798,41829.0,41825.0,0.00040299]
[1641715494938,0.25885176,41828.0,41825.0,0.00040299]
[1641715495138,0.059794,41827.0,41825.0,0.00040299]
[1641715495337,0.059794,41827.0,41825.0,0.06019367]
[1641715495737,0.04496402,41827.0,41825.0,0.06019367]
[1641715496137,0.05496402,41827.0,41825.0,0.000403]
[1641715496537,0.05496402,41827.0,41825.0,0.00040301]
[1641715497341,0.04496402,41827.0,41825.0,0.00040301]
[1641715498039,0.05396402,41827.0,41825.0,0.00040301]
[1641715499701,0.05396402,41827.0,41825.0,0.00080602]
[1641715499900,0.04496402,41827.0,41825.0,0.00040301]
[1641715500100,0.05396402,41827.0,41825.0,0.00040301]
[1641715501402,0.04496402,41827.0,41825.0,0.00040301]
[1641715502228,0.05396402,41827.0,41825.0,0.00040301]
[1641715503030,0.05396402,41827.0,41825.0,0.00080602]
[1641715503230,0.05396402,41827.0,41825.0,0.00040301]
[1641715503429,0.04496402,41827.0,41825.0,0.00040301]
[1641715504129,0.05496402,41827.0,41825.0,0.00040301]
[1641715505431,0.04496402,41827.0,41825.0,0.00040301]
[1641715506088,0.05496402,41827.0,41825.0,0.00040301]
[1641715506284,0.05496402,41827.0,41825.0,0.00080602]
[1641715506486,0.05496402,41827.0,41825.0,0.00040301]
[1641715508187,0.02,41827.0,41825.0,0.00040301]
[1641715508390,0.02,41827.0,41826.0,0.384355]
[1641715509388,0.059784,41832.0,41826.0,0.384355]
[1641715509634,0.059784,41832.0,41831.0,0.42111476]
[1641715510233,0.071784,41832.0,41831.0,0.42111476]
[1641715511537,0.059784,41832.0,41831.0,0.42111476]
[1641715512235,0.072784,41832.0,41831.0,0.42111476]
[1641715512834,0.013,41832.0,41831.0,0.42111476]
[1641715513038,0.013,41832.0,41831.0,0.68905696]
[1641715513292,0.013,41832.0,41831.0,1.07341196]
[1641715513494,0.00042652,41835.0,41831.0,1.07341196]
[1641715513692,0.00042652,41835.0,41832.0,0.444126]
[1641715513993,0.00042652,41835.0,41832.0,0.85798388]
[1641715514594,0.00042652,41835.0,41832.0,0.91775488]
[1641715514795,0.00042652,41835.0,41833.0,0.059772]
[1641715514998,0.00042652,41835.0,41834.0,0.66577354]
[1641715515896,0.00042655,41835.0,41834.0,0.66577354]
[1641715516196,0.00842655,41835.0,41834.0,0.68177354]
[1641715517033,0.00706713,41835.0,41834.0,0.68177354]
[1641715517535,0.00042655,41835.0,41834.0,0.66577354]
[1641715518137,0.00042655,41835.0,41834.0,0.72577354]
[1641715519440,0.00042655,41835.0,41834.0,0.66577354]
[1641715520141,0.00042655,41835.0,41834.0,0.74377354]
[1641715520905,0.00042655,41835.0,41834.0,0.84377354]
[1641715521098,0.00042655,41835.0,41834.0,0.94377354]
[1641715521498,0.00042655,41835.0,41834.0,0.86577354]
[1641715522000,0.00042655,41835.0,41834.0,0.76577354]
[1641715522299,0.00042655,41835.0,41834.0,0.91477354]
[1641715522500,0.00042655,41835.0,41834.0,2.17977354]
[1641715523501,0.0008531,41835.0,41834.0,2.17857354]
[1641715523699,0.00042655,41835.0,41834.0,2.17857354]
[1641715524302,0.00042655,41835.0,41834.0,2.22157354]
[1641715524733,0.00042655,41835.0,41834.0,0.95657354]
[1641715525634,0.00042655,41835.0,41834.0,0.91357354]
[1641715525839,0.00042655,41835.0,41834.0,0.432155]
[1641715526036,0.00042655,41835.0,41834.0,0.65030007]
[1641715526236,0.00042655,41835.0,41834.0,0.72730007]
[1641715527441,0.00042655,41835.0,41834.0,0.65030007]
[1641715528388,0.00042655,41835.0,41834.0,0.71230007]
[1641715529593,0.00042655,41835.0,41834.0,0.65030007]
[1641715530189,0.00042655,41835.0,41834.0,0.447355]
[1641715530394,0.00042655,41835.0,41834.0,0.71605669]
[1641715530592,0.00042655,41835.0,41834.0,0.91733677]
[1641715530992,0.00042655,41835.0,41834.0,0.96513677]
[1641715531194,0.0008531,41835.0,41834.0,0.96513677]
[1641715531391,0.0008531,41835.0,41834.0,2.23013677]
[1641715531392,0.00042655,41835.0,41834.0,2.23013677]
[1641715532040,0.00042655,41835.0,41834.0,2.18863677]
[1641715532243,0.00042655,41835.0,41834.0,2.22663677]
[1641715532740,0.00613808,41841.0,41834.0,2.42663677]
[1641715532938,0.00613808,41841.0,41840.0,0.00128169]
[1641715533141,0.00613808,41841.0,41840.0,0.7141174]
[1641715533338,0.00613808,41841.0,41840.0,2.0291174]
[1641715533538,0.00613808,41841.0,41840.0,2.1291174]
[1641715534139,0.0002,41847.0,41840.0,2.1888714]
[1641715534340,0.0002,41847.0,41844.0,0.30804075]
[1641715534540,0.0002,41847.0,41845.0,0.36131818]
[1641715534740,0.00633808,41847.0,41845.0,0.36131818]
[1641715534945,0.00633808,41847.0,41845.0,0.42107222]
[1641715535641,0.00633808,41847.0,41845.0,0.48082722]
[1641715535642,0.00677308,41847.0,41845.0,0.48082722]
[1641715536287,0.000635,41847.0,41845.0,0.50882722]
[1641715536689,0.00107,41847.0,41845.0,0.50882722]
[1641715536886,0.000635,41847.0,41845.0,0.50882722]
[1641715537493,0.000635,41847.0,41845.0,0.48082722]
[1641715538288,0.000635,41847.0,41845.0,0.50882722]
[1641715539091,0.00062529,41847.0,41845.0,0.50882722]
[1641715540340,0.00062529,41847.0,41845.0,0.53982722]
[1641715541538,0.00062529,41847.0,41845.0,0.48082722]
[1641715542436,0.00062529,41847.0,41845.0,0.50982722]
[1641715543499,0.0010508,41847.0,41845.0,0.48082722]
[1641715543698,0.00062551,41847.0,41845.0,0.48082722]
[1641715544396,0.00062551,41847.0,41845.0,0.50482722]
[1641715545299,0.00062551,41847.0,41846.0,0.11951331]
[1641715546300,0.00062551,41847.0,41846.0,0.14051331]
[1641715547537,0.00062551,41847.0,41846.0,0.11951331]
[1641715548339,0.00062551,41847.0,41846.0,0.12551331]
[1641715549539,0.00062551,41847.0,41846.0,0.11951331]
[1641715550342,0.00043841,41847.0,41846.0,0.11951331]
[1641715562933,0.00043841,41847.0,41846.0,0.43195291]
[1641715563333,0.00043841,41847.0,41846.0,0.47975291]
[1641715563736,0.00043841,41847.0,41846.0,0.79872401]
[1641715563933,0.00043841,41847.0,41846.0,0.48628441]
[1641715564132,0.00043841,41847.0,41846.0,1.13039141]
[1641715564334,0.00043841,41847.0,41846.0,2.41562496]
[1641715565535,0.00043841,41847.0,41846.0,2.39662496]
[1641715566193,0.00043841,41847.0,41846.0,0.81265386]
[1641715566394,0.00043841,41847.0,41846.0,2.38742297]
[1641715567094,0.00043841,41847.0,41846.0,1.12242297]
[1641715567496,0.00043841,41847.0,41846.0,2.36442297]
[1641715568293,0.00043841,41847.0,41846.0,2.39242297]
[1641715568693,0.00086392,41847.0,41846.0,2.39242297]
[1641715568895,0.00043841,41847.0,41846.0,2.39242297]
[1641715569093,0.00043841,41847.0,41846.0,1.12742297]
[1641715569735,0.00043841,41847.0,41846.0,1.09942297]
[1641715570538,0.00043841,41847.0,41846.0,1.12342297]
[1641715571439,0.00043841,41847.0,41846.0,2.38842297]
[1641715571640,0.00043841,41847.0,41846.0,2.36442297]
[1641715572338,0.00043841,41847.0,41846.0,2.38842297]
[1641715573595,0.00043841,41847.0,41846.0,2.36442297]
[1641715573795,0.00043841,41847.0,41846.0,0.99942297]
[1641715574394,0.00043841,41847.0,41846.0,1.02742297]
[1641715575597,0.00043841,41847.0,41846.0,0.99942297]
[1641715575997,0.00043841,41847.0,41846.0,2.26442297]
[1641715576397,0.00043841,41847.0,41846.0,2.29242297]
[1641715576604,0.00043841,41847.0,41846.0,0.64065386]
[1641715576802,0.00043841,41847.0,41846.0,0.57966831]
[1641715577041,0.00043841,41847.0,41846.0,0.53186831]
[1641715577243,0.00043841,41847.0,41846.0,0.14751331]
[1641715577841,0.00043841,41847.0,41846.0,0.11951331]
[1641715578643,0.00086392,41847.0,41846.0,0.11951331]
[1641715578844,0.00043841,41847.0,41846.0,0.11951331]
[1641715579645,0.29757102,41847.0,41846.0,0.11951331]
[1641715579943,0.00043841,41847.0,41846.0,0.11951331]
[1641715580545,0.00043841,41847.0,41846.0,0.60386831]
[1641715580808,0.34062853,41839.0,41831.0,0.65905127]
[1641715581107,0.00120492,41835.0,41830.0,0.81307751]
[1641715581306,0.00121566,41832.0,41830.0,0.71274654]
[1641715581507,0.13000337,41831.0,41830.0,0.71274654]
[1641715581908,0.18980037,41831.0,41830.0,7.476e-05]
[1641715582406,0.58405037,41831.0,41830.0,0.03707476]
[1641715582805,0.57905037,41831.0,41830.0,0.03707476]
[1641715583206,0.57905037,41831.0,41830.0,0.03741519]
[1641715583806,0.56905037,41831.0,41827.0,0.44833492]
[1641715584005,0.18480037,41831.0,41827.0,0.44833492]
[1641715584409,0.19480037,41831.0,41827.0,0.47033492]
[1641715585641,0.18480037,41831.0,41827.0,0.44833492]
[1641715586451,0.19580037,41831.0,41827.0,0.44833492]
[1641715586645,0.19580037,41831.0,41825.0,0.00041231]
[1641715587645,0.18480037,41831.0,41825.0,0.36049029]
[1641715588289,0.18480037,41831.0,41825.0,0.3604903]
[1641715588491,0.19680037,41831.0,41825.0,0.3644903]
[1641715589391,0.19680037,41831.0,41825.0,0.36447228]
[1641715589793,0.18480037,41831.0,41825.0,0.36047228]
[1641715590293,0.18480037,41831.0,41825.0,0.42025828]
[1641715590494,0.19680037,41831.0,41825.0,0.42426745]
[1641715591493,0.19680037,41831.0,41826.0,0.38425]
[1641715591693,0.18480037,41831.0,41826.0,0.38425]
[1641715591893,0.18480037,41831.0,41826.0,0.444034]
[1641715592538,0.19680037,41831.0,41826.0,0.450034]
[1641715592740,0.012,41831.0,41826.0,0.50003221]
[1641715592943,0.012,41831.0,41826.0,0.44025]
[1641715593141,0.012,41831.0,41828.0,0.059782]
[1641715593339,0.012,41831.0,41829.0,0.71252675]
[1641715593541,0.012,41831.0,41830.0,0.30537308]
[1641715593839,0.00042606,41835.0,41830.0,0.68962308]
[1641715594039,0.00042606,41835.0,41834.0,0.32812817]
[1641715594842,0.00042632,41835.0,41834.0,0.32812817]
[1641715595644,0.00042632,41835.0,41834.0,0.58804901]
[1641715596395,0.00042632,41835.0,41834.0,0.59104901]
[1641715597694,0.00042632,41835.0,41834.0,0.58804901]
[1641715598393,0.00042632,41835.0,41834.0,0.59104901]
[1641715598995,0.00042632,41835.0,41834.0,0.97529901]
[1641715599638,0.00042632,41835.0,41834.0,0.97229901]
[1641715600437,0.00042632,41835.0,41834.0,0.71537817]
[1641715601439,0.00085264,41835.0,41834.0,0.71537817]
[1641715601639,0.00042632,41835.0,41834.0,0.71537817]
[1641715601837,0.00042632,41835.0,41834.0,0.71237817]
[1641715602444,0.00042632,41835.0,41834.0,0.71537817]
[1641715603287,0.00042632,41835.0,41834.0,0.38725]
[1641715603493,0.00042632,41835.0,41834.0,0.003]
[1641715603689,0.00166428,41835.0,41834.0,0.003]
[1641715604189,0.31485458,41835.0,41834.0,0.003]
[1641715604389,0.05979225,41833.0,41826.0,0.43001932]
[1641715604590,0.059793,41831.0,41826.0,0.43001932]
[1641715604789,0.119585,41832.0,41827.0,0.38425]
[1641715606090,0.059792,41830.0,41827.0,0.38425]
[1641715606493,0.059792,41830.0,41827.0,0.39325]
[1641715607742,0.059792,41830.0,41827.0,0.38425]
[1641715608543,0.070792,41830.0,41827.0,0.39225]
[1641715609746,0.059792,41830.0,41827.0,0.38425]
[1641715609946,0.059792,41830.0,41825.0,0.00040365]
[1641715610150,0.06106616,41830.0,41825.0,0.00040365]
[1641715610347,0.0598,41828.0,41825.0,0.00040365]
[1641715610647,0.35624815,41827.0,41825.0,0.01340365]
[1641715611496,0.35624815,41827.0,41825.0,0.01340367]
[1641715611699,0.41605015,41827.0,41825.0,0.01340367]
[1641715611900,0.47585049,41827.0,41825.0,0.01340367]
[1641715612102,0.059802,41826.0,41825.0,0.01340367]
[1641715612502,0.44533701,41826.0,41825.0,0.00040367]
[1641715613500,0.44533701,41826.0,41825.0,0.00080735]
[1641715613701,0.44533701,41826.0,41825.0,0.00040368]
[1641715614540,0.45933701,41826.0,41825.0,0.00040368]
[1641715615143,0.50713701,41826.0,41825.0,0.00040368]
[1641715615742,0.49313701,41826.0,41825.0,0.00080736]
[1641715615942,0.49313701,41826.0,41825.0,0.00040368]
[1641715616544,0.48257524,41826.0,41825.0,0.00040368]
[1641715616845,0.48257524,41826.0,41825.0,0.00080736]
[1641715617045,0.48257524,41826.0,41825.0,0.00040368]
[1641715617448,0.77388808,41826.0,41825.0,0.00040368]
[1641715618289,0.76088808,41826.0,41825.0,0.00040368]
[1641715618490,0.77488808,41826.0,41825.0,0.00040368]
[1641715619690,0.76088808,41826.0,41825.0,0.00040368]
[1641715620495,0.77981338,41826.0,41825.0,0.00040368]
[1641715621295,0.77981338,41826.0,41825.0,0.00080736]
[1641715621496,0.77981338,41826.0,41825.0,0.00040368]
[1641715621895,0.76581338,41826.0,41825.0,0.00040368]
[1641715622340,0.46957524,41826.0,41825.0,0.00040368]
[1641715622539,0.52657524,41826.0,41825.0,0.00040368]
[1641715622942,0.14232524,41826.0,41825.0,0.00040368]
[1641715623539,0.14232524,41826.0,41825.0,0.00080736]
[1641715623741,0.08532524,41826.0,41825.0,0.00040368]
[1641715624540,0.14232524,41826.0,41825.0,0.00080736]
[1641715624740,0.09452524,41826.0,41825.0,0.00040368]
[1641715625342,0.057,41826.0,41825.0,0.00040368]
[1641715625797,0.11999923,41835.0,41825.0,0.00040368]
[1641715626295,0.00042623,41835.0,41829.0,0.059783]
[1641715626497,0.059784,41833.0,41829.0,0.059784]
[1641715627296,0.059784,41833.0,41831.0,0.4585285]
[1641715627496,0.00042628,41835.0,41831.0,0.4585285]
[1641715627699,0.00042628,41835.0,41832.0,0.05978]
[1641715627897,0.00042628,41835.0,41833.0,0.29499672]
[1641715628097,0.0004263,41835.0,41833.0,0.29499672]
[1641715628399,0.0004263,41835.0,41832.0,0.059779]
[1641715628596,0.0004263,41835.0,41833.0,0.004]
[1641715628797,0.0602073,41835.0,41833.0,0.004]
[1641715628996,0.06020731,41835.0,41833.0,0.004]
[1641715629943,0.059796,41830.0,41825.0,0.0004036]
[1641715630244,0.059796,41830.0,41826.0,0.38425]
[1641715632645,0.059796,41830.0,41826.0,0.38825]
[1641715633317,0.28264054,41832.0,41827.0,0.28879767]
[1641715633318,0.22284554,41832.0,41827.0,0.28879767]
[1641715633520,0.00042626,41835.0,41828.0,0.38425]
[1641715633718,0.00042626,41835.0,41829.0,0.04902839]
[1641715633916,0.00042626,41835.0,41833.0,0.00124221]
[1641715634119,0.00042626,41835.0,41833.0,0.18055049]
[1641715634317,0.00042626,41835.0,41834.0,0.65729309]
[1641715634519,0.00085258,41835.0,41834.0,1.14154309]
[1641715634719,0.00042632,41835.0,41834.0,1.6267121]
[1641715634917,0.00042632,41835.0,41834.0,0.38425]
[1641715635118,0.00042632,41835.0,41833.0,0.167768]
[1641715635517,0.00042632,41835.0,41833.0,0.067768]
[1641715635720,0.00042632,41835.0,41833.0,0.059768]
[1641715635918,0.00085264,41835.0,41833.0,0.059768]
[1641715636520,0.00042632,41835.0,41833.0,0.066768]
[1641715637052,0.00042632,41835.0,41834.0,0.36975958]
[1641715637854,0.00085264,41835.0,41834.0,0.36975958]
[1641715638253,0.00042632,41835.0,41834.0,0.36975958]
[1641715640653,0.00042632,41835.0,41834.0,0.37175958]
[1641715641298,0.00042632,41835.0,41834.0,0.75600958]
[1641715641500,0.00042632,41835.0,41834.0,0.95600958]
[1641715641701,0.00042632,41835.0,41834.0,0.95400958]
[1641715642501,0.00042632,41835.0,41834.0,0.96300958]
[1641715643901,0.00042632,41835.0,41834.0,0.75400958]
[1641715644550,0.00042632,41835.0,41834.0,0.76300958]
[1641715644752,0.00042632,41835.0,41834.0,1.04006781]
[1641715644952,0.00042632,41835.0,41834.0,1.28786781]
[1641715645152,0.00042632,41835.0,41834.0,1.28912531]
[1641715645953,0.00042632,41835.0,41834.0,1.28012531]
[1641715646554,0.00042632,41835.0,41834.0,1.29912531]
[1641715647854,0.00042632,41835.0,41834.0,1.28012531]
[1641715648054,0.00042632,41835.0,41834.0,1.27967531]
[1641715648695,0.00042632,41835.0,41834.0,1.31267531]
[1641715649497,0.00042632,41835.0,41834.0,2.57767531]
[1641715649896,0.00042632,41835.0,41834.0,2.54467531]
[1641715650696,0.00042632,41835.0,41834.0,2.57167531]
[1641715652345,0.00042632,41835.0,41834.0,2.54467531]
[1641715652542,0.00042632,41835.0,41834.0,2.57867531]
[1641715653943,0.00042632,41835.0,41834.0,2.54467531]
[1641715654544,0.00042632,41835.0,41834.0,2.57067531]
[1641715655443,0.00085264,41835.0,41834.0,2.57067531]
[1641715655649,0.00042632,41835.0,41834.0,1.30567531]
[1641715655895,0.00042632,41835.0,41834.0,1.27967531]
[1641715656295,0.00042632,41835.0,41834.0,0.90180958]
[1641715656495,0.00042632,41835.0,41834.0,0.80180958]
[1641715656695,0.00042632,41835.0,41834.0,0.88080958]
[1641715656897,0.00042632,41835.0,41834.0,0.83300958]
[1641715657700,0.00042632,41835.0,41834.0,0.46325]
[1641715658299,0.00042632,41835.0,41834.0,0.38425]
[1641715658700,0.00042632,41835.0,41834.0,0.42625]
[1641715660042,0.00042632,41835.0,41834.0,0.38425]
[1641715660745,0.00042632,41835.0,41834.0,0.42325]
[1641715661745,0.00042632,41835.0,41834.0,0.77963622]
[1641715661944,0.00042632,41835.0,41834.0,0.74063622]
[1641715662146,0.00042632,41835.0,41834.0,0.80040522]
[1641715662349,0.00042632,41835.0,41834.0,0.90170413]
[1641715662747,0.00042632,41835.0,41834.0,0.92570413]
[1641715663148,0.00085264,41835.0,41834.0,0.92570413]
[1641715663393,0.00042632,41835.0,41834.0,0.92570413]
[1641715663791,0.00042632,41835.0,41834.0,0.86593513]
[1641715663994,0.00042632,41835.0,41834.0,0.84193513]
[1641715664591,0.00042632,41835.0,41834.0,0.87193513]
[1641715665994,0.00042632,41835.0,41834.0,0.84193513]
[1641715666794,0.00042632,41835.0,41834.0,0.86593513]
[1641715667444,0.00042632,41835.0,41834.0,0.40825]
[1641715667844,0.00042632,41835.0,41834.0,0.38425]
[1641715668645,0.00042632,41835.0,41834.0,0.45825]
[1641715668845,0.00042632,41835.0,41834.0,0.60825]
[1641715669947,0.00042632,41835.0,41834.0,0.58425]
[1641715670795,0.00042632,41835.0,41834.0,0.61425]
[1641715671296,0.00042632,41835.0,41834.0,0.51425]
[1641715671498,0.00042632,41835.0,41834.0,0.41425]
[1641715671998,0.00042632,41835.0,41834.0,0.38425]
[1641715672597,0.00042632,41835.0,41834.0,0.47425]
[1641715673899,0.00042632,41835.0,41834.0,0.38425]
[1641715674747,0.00042632,41835.0,41834.0,0.41625]
[1641715675946,0.00042632,41835.0,41834.0,0.38425]
[1641715676748,0.00042632,41835.0,41834.0,0.40425]
[1641715677850,0.00042632,41835.0,41834.0,0.38425]
[1641715678495,0.00042632,41835.0,41834.0,0.64175253]
[1641715678696,0.00085264,41835.0,41834.0,0.66175253]
[1641715679100,0.00042632,41835.0,41834.0,0.66175253]
[1641715679800,0.00042632,41835.0,41834.0,0.66149918]
[1641715679998,0.00042632,41835.0,41834.0,0.64149918]
[1641715680604,0.00042632,41835.0,41834.0,0.66349918]
[1641715680999,0.00042632,41835.0,41834.0,0.40625]
[1641715681301,0.00042632,41835.0,41834.0,0.60625]
[1641715681500,0.00042632,41835.0,41834.0,0.60754048]
[1641715681699,0.00042632,41835.0,41834.0,0.95534048]
[1641715681900,0.00042632,41835.0,41834.0,0.93334048]
[1641715682145,0.00042632,41835.0,41834.0,0.63334048]
[1641715682748,0.00042632,41835.0,41834.0,0.65334048]
[1641715682948,0.00042632,41835.0,41834.0,1.91834048]
[1641715683348,0.00042632,41835.0,41834.0,0.65334048]
[1641715683549,0.00042632,41835.0,41834.0,0.92375232]
[1641715683949,0.00042632,41835.0,41834.0,0.90375232]
[1641715684751,0.00042632,41835.0,41834.0,0.93475232]
[1641715684950,0.00042632,41835.0,41834.0,0.66434048]
[1641715686000,0.00042632,41835.0,41834.0,0.63334048]
[1641715686704,0.00042632,41835.0,41834.0,0.67134048]
[1641715687905,0.00042632,41835.0,41834.0,0.63334048]
[1641715688312,0.00042632,41835.0,41834.0,0.43334048]
[1641715688707,0.00042632,41835.0,41834.0,0.45325]
[1641715690352,0.00042632,41835.0,41834.0,0.38425]
[1641715690752,0.00842632,41835.0,41834.0,0.42725]
[1641715692154,0.00042632,41835.0,41834.0,0.38425]
[1641715692754,0.00742632,41835.0,41834.0,0.38525]
[1641715693995,0.00042632,41835.0,41834.0,0.38425]
[1641715694694,0.00542632,41835.0,41834.0,0.41925]
[1641715696098,0.00042632,41835.0,41834.0,0.38425]
[1641715696698,0.00842632,41835.0,41834.0,0.41525]
[1641715697952,0.00042632,41835.0,41834.0,0.38425]
[1641715698851,0.00642632,41835.0,41834.0,0.42025]
[1641715700052,0.00042632,41835.0,41834.0,0.38425]
[1641715700654,0.00042632,41835.0,41834.0,0.58425]
[1641715700898,0.00042632,41835.0,41834.0,0.60125]
[1641715702102,0.00042632,41835.0,41834.0,0.58425]
[1641715702901,0.00042632,41835.0,41834.0,0.63225]
[1641715702902,0.00085264,41835.0,41834.0,0.63225]
[1641715703102,0.00042632,41835.0,41834.0,0.63225]
[1641715704005,0.00042632,41835.0,41834.0,0.58425]
[1641715704653,0.00042632,41835.0,41834.0,0.58548746]
[1641715704853,0.00042632,41835.0,41834.0,0.41648746]
[1641715705052,0.00042632,41835.0,41834.0,0.61525]
[1641715706056,0.00042632,41835.0,41834.0,0.58425]
[1641715706855,0.00042632,41835.0,41834.0,0.63125]
[1641715707458,0.00085264,41835.0,41834.0,0.63125]
[1641715707860,0.00042632,41835.0,41834.0,0.63125]
[1641715708161,0.00042632,41835.0,41834.0,0.58425]
[1641715708598,0.00041681,41835.0,41834.0,0.58425]
[1641715708800,0.00041681,41835.0,41834.0,0.65025]
[1641715710101,0.00041681,41835.0,41834.0,0.58425]
[1641715710902,0.00041681,41835.0,41834.0,0.66125]
[1641715711905,0.00042653,41835.0,41834.0,0.66125]
[1641715712154,0.00042653,41835.0,41834.0,0.58425]
[1641715712955,0.00085306,41835.0,41834.0,0.65925]
[1641715713154,0.00042653,41835.0,41834.0,0.65925]
[1641715714156,0.00042653,41835.0,41834.0,0.58425]
[1641715714956,0.00042653,41835.0,41834.0,0.65725]
[1641715716003,0.00042653,41835.0,41834.0,0.58425]
[1641715716201,0.00042653,41835.0,41834.0,0.57925]
[1641715716401,0.00042631,41835.0,41834.0,0.57925]
[1641715716600,0.00042631,41835.0,41834.0,0.62705]
[1641715716801,0.00042631,41835.0,41834.0,0.68305]
[1641715718102,0.00042631,41835.0,41834.0,0.62705]
[1641715718803,0.00042631,41835.0,41834.0,0.68705]
[1641715720156,0.00042631,41835.0,41834.0,0.62705]
[1641715720754,0.00042632,41835.0,41834.0,0.62705]
[1641715721053,0.00042632,41835.0,41834.0,0.60805]
[1641715721655,0.00042632,41835.0,41834.0,0.70805]
[1641715722055,0.00042632,41835.0,41834.0,0.52705]
[1641715722255,0.00042632,41835.0,41834.0,0.62705]
[1641715722855,0.00042632,41835.0,41834.0,0.72605]
[1641715724109,0.00042632,41835.0,41834.0,0.62705]
[1641715724612,0.00042632,41835.0,41834.0,0.52705]
[1641715724809,0.00042632,41835.0,41834.0,0.71405]
[1641715726112,0.00085264,41835.0,41834.0,0.71405]
[1641715726311,0.00042632,41835.0,41834.0,0.62705]
[1641715726912,0.00042632,41835.0,41834.0,0.71105]
[1641715728154,0.00042632,41835.0,41834.0,0.62705]
[1641715728751,0.00042632,41835.0,41834.0,0.48205]
[1641715728953,0.00042632,41835.0,41834.0,0.72905]
[1641715729754,0.00042632,41835.0,41834.0,0.57905]
[1641715729952,0.00042632,41835.0,41834.0,0.52905]
[1641715730252,0.00042632,41835.0,41834.0,0.43205]
[1641715730912,0.00042632,41835.0,41834.0,0.47905]
[1641715731515,0.00042632,41835.0,41834.0,0.43125]
[1641715732117,0.00042632,41835.0,41834.0,0.38425]
[1641715732914,0.00742632,41835.0,41834.0,0.40225]
[1641715734118,0.00042632,41835.0,41834.0,0.38425]
[1641715734954,0.00542632,41835.0,41834.0,0.39125]
[1641715735354,0.00542632,41835.0,41834.0,0.007]
[1641715735956,0.38967632,41835.0,41834.0,0.007]
[1641715736156,0.69638168,41835.0,41827.0,0.11956882]
[1641715736358,0.31213168,41835.0,41828.0,0.38425]
[1641715736557,0.312558,41835.0,41826.0,0.119571]
[1641715736757,0.432133,41835.0,41828.0,0.05978845]
[1641715736957,0.441133,41835.0,41828.0,0.041]
[1641715737159,0.500925,41835.0,41828.0,0.041]
[1641715737357,0.059791,41832.0,41828.0,0.041]
[1641715737760,0.059791,41832.0,41829.0,0.11957602]
[1641715738059,0.01072325,41835.0,41828.0,0.041]
[1641715738060,0.01072322,41835.0,41828.0,0.041]
[1641715738309,0.00172322,41835.0,41825.0,0.00039379]
[1641715738510,0.059784,41834.0,41825.0,0.06017679]
[1641715739006,0.00171369,41835.0,41829.0,0.11956308]
[1641715739209,0.00041676,41835.0,41831.0,0.05978]
[1641715740106,0.00041679,41835.0,41832.0,0.059782]
[1641715740307,0.00041679,41835.0,41830.0,0.119556]
[1641715740506,0.06019879,41835.0,41830.0,0.119556]
[1641715740910,0.06619879,41835.0,41830.0,0.148556]
[1641715741208,0.06619879,41835.0,41833.0,0.0597812]
[1641715742248,0.06020853,41835.0,41833.0,0.0597812]
[1641715742851,0.01242653,41835.0,41833.0,0.1195642]
[1641715744151,0.00042653,41835.0,41833.0,0.1195642]
[1641715744953,0.00842653,41835.0,41833.0,0.1275642]
[1641715745554,0.00842631,41835.0,41833.0,0.1275642]
[1641715746211,0.00042631,41835.0,41833.0,0.1195642]
[1641715746912,0.00642631,41835.0,41833.0,0.1285642]
[1641715748313,0.00042631,41835.0,41833.0,0.1195642]
[1641715749013,0.00742631,41835.0,41833.0,0.1285642]
[1641715749855,0.00785263,41835.0,41833.0,0.1285642]
[1641715750057,0.00742632,41835.0,41833.0,0.1285642]
[1641715750255,0.00042632,41835.0,41833.0,0.1195642]
[1641715750856,0.05941793,41836.0,41833.0,0.1195642]
[1641715751060,0.01042632,41835.0,41833.0,0.1265642]
[1641715752160,0.05941793,41836.0,41833.0,0.1195642]
[1641715752560,0.54229682,41839.0,41833.0,0.059783]
[1641715752959,0.01,41836.0,41835.0,0.41373754]
[1641715753319,0.01,41836.0,41835.0,0.98249574]
[1641715753518,0.01,41836.0,41835.0,1.36674574]
[1641715753724,0.01,41836.0,41835.0,1.11532616]
[1641715754117,0.01,41836.0,41835.0,1.38587808]
[1641715754418,0.34062853,41839.0,41836.0,0.30163719]
[1641715754620,0.34062853,41839.0,41838.0,0.38425]
[1641715754818,0.34062853,41839.0,41838.0,0.43425]
[1641715755017,0.34062853,41839.0,41838.0,0.48425]
[1641715755217,0.34062853,41839.0,41838.0,0.77450942]
[1641715757052,0.34062853,41839.0,41838.0,0.79950942]
[1641715758256,0.34062853,41839.0,41838.0,0.77450942]
[1641715759056,0.34062853,41839.0,41838.0,0.80050942]
[1641715760359,0.34062853,41839.0,41838.0,0.77450942]
[1641715761003,0.34062853,41839.0,41838.0,0.80550942]